fUSD/lending_fUSD_20251119
["ID","MTS","AMOUNT","RATE_DAILY","PERIOD"]
[394396105,1763529045205,-898.37457,0.00040181,120]
[394396106,1763529045214,-898.37457,0.00040181,120]
[394396107,1763529045223,-898.37457,0.00040181,120]
[394396108,1763529045232,-898.37457,0.00040181,120]
[394396109,1763529045241,-151.0,0.00040191,120]
[394396110,1763529045251,-177.45,0.00040192,2]
[394396111,1763529045260,-150.0,0.00040192,2]
[394396112,1763529045269,-169.55,0.00040192,2]
[394396113,1763529045279,-1244.21,0.00040192,2]
[394396114,1763529045291,-177.45,0.00040192,2]
[394396115,1763529045302,-169.55,0.00040192,2]
[394396116,1763529045312,-150.0,0.00040192,2]
[394396117,1763529045321,-177.03,0.00040192,2]
[394396118,1763529045330,-169.55,0.00040192,2]
[394396119,1763529045339,-150.0,0.00040192,2]
[394396120,1763529045349,-545.79273142,0.00040197,31]
[394396121,1763529045359,-500.0,0.00040198,2]
[394396122,1763529045368,-1000.0,0.00040198,31]
[394396123,1763529045377,-500.0,0.00040198,2]
[394396124,1763529045387,-820.0,0.00040198,120]
[394396125,1763529045397,-500.0,0.00040198,31]
[394396126,1763529045406,-943.82,0.00040224,30]
[394396127,1763529045415,-500.0,0.00040225,2]
[394396128,1763529045425,-1000.0,0.00040225,31]
[394396129,1763529045438,-500.0,0.00040225,2]
[394396130,1763529045447,-820.0,0.00040225,120]
[394396131,1763529045457,-500.0,0.00040225,31]
[394396132,1763529045468,-1000.0,0.00040227,7]
[394396133,1763529045479,-168.0,0.00040243,7]
[394396134,1763529045492,-500.0,0.00040253,2]
[394396135,1763529045502,-1000.0,0.00040253,31]
[394396136,1763529045514,-500.0,0.00040253,2]
[394396137,1763529045533,-820.0,0.00040253,120]
[394396139,1763529045553,-500.0,0.00040253,31]
[394396140,1763529045565,-151.0,0.00040262,120]
[394396141,1763529045574,-151.0,0.00040262,120]
[394396142,1763529045583,-151.0,0.00040262,120]
[394396143,1763529045592,-200.38387,0.00040262,120]
[394396144,1763529045602,-200.38387,0.00040262,120]
[394396145,1763529045612,-200.38387,0.00040262,120]
[394396146,1763529045621,-200.383865,0.00040262,120]
[394396147,1763529045630,-159.23093,0.00040262,120]
[394396148,1763529045639,-159.23093,0.00040262,120]
[394396149,1763529045648,-159.23093,0.00040262,120]
[394396150,1763529045657,-159.23094,0.00040262,120]
[394396151,1763529045666,-898.37457,0.00040262,120]
[394396152,1763529045675,-898.37457,0.00040262,120]
[394396153,1763529045685,-898.37457,0.00040262,120]
[394396154,1763529045695,-898.374579,0.00040262,120]
[394396155,1763529045704,-6089.44681061,0.00040268,15]
[394396156,1763529045714,-500.0,0.00040272,7]
[394396157,1763529045723,-501.47898047,0.00040273,5]
[394396158,1763529045731,-17420.10620975,0.00040276,15]
[394396159,1763529045741,-500.0,0.0004028,2]
[394396161,1763529045751,-1000.0,0.0004028,31]
[394396162,1763529045760,-355.80865379,0.0004028,2]
[394396163,1763529045770,-820.0,0.0004028,120]
[394396164,1763529045779,-500.0,0.0004028,31]
[394396165,1763529045790,-1000.0,0.00040308,31]
[394396166,1763529045800,-820.0,0.00040308,120]
[394396167,1763529045809,-500.0,0.00040308,31]
[394396168,1763529045819,-500.0,0.00040309,2]
[394396169,1763529045828,-151.0,0.00040317,120]
[394396170,1763529045837,-4252.46233937,0.00040317,30]
[394396171,1763529045847,-1339.41435762,0.00040325,28]
[394396172,1763529045859,-161.12,0.00040326,2]
[394396173,1763529045868,-151.79,0.0004033,2]
[394396174,1763529045878,-1000.0,0.00040335,31]
[394396175,1763529045888,-820.0,0.00040335,120]
[394396176,1763529045897,-500.0,0.00040335,31]
[394396177,1763529045907,-1000.0,0.00040362,31]
[394396178,1763529045917,-820.0,0.00040362,120]
[394396179,1763529045926,-500.0,0.00040362,31]
[394396180,1763529045935,-160.97,0.00040388,14]
[394396181,1763529045946,-1000.0,0.0004039,31]
[394396182,1763529045955,-820.0,0.0004039,120]
[394396183,1763529045968,-500.0,0.0004039,31]
[394396184,1763529045978,-168.0,0.00040396,2]
[394396185,1763529045987,-153.0,0.00040406,120]
[394396186,1763529045996,-153.0,0.00040406,120]
[394396187,1763529046007,-153.0,0.00040406,120]
[394396188,1763529046017,-153.0,0.00040406,120]
[394396189,1763529046026,-153.0,0.00040406,120]
[394396190,1763529046036,-153.0,0.00040406,120]
[394396191,1763529046048,-153.0,0.00040406,120]
[394396192,1763529046057,-153.0,0.00040406,120]
[394396193,1763529046067,-153.0,0.00040406,120]
[394396194,1763529046077,-153.0,0.00040406,120]
[394396195,1763529046087,-153.0,0.00040406,120]
[394396196,1763529046097,-153.0,0.00040406,120]
[394396197,1763529046106,-153.0,0.00040406,120]
[394396198,1763529046115,-153.0,0.00040406,120]
[394396199,1763529046126,-153.0,0.00040406,120]
[394396200,1763529046135,-153.0,0.00040406,120]
[394396201,1763529046144,-153.0,0.00040406,120]
[394396202,1763529046154,-153.0,0.00040406,120]
[394396203,1763529046163,-153.0,0.00040406,120]
[394396204,1763529046172,-153.0,0.00040406,120]
[394396205,1763529046182,-153.0,0.00040406,120]
[394396206,1763529046193,-153.0,0.00040406,120]
[394396207,1763529046203,-153.0,0.00040406,120]
[394396208,1763529046212,-153.0,0.00040406,120]
[394396209,1763529046222,-153.0,0.00040406,120]
[394396211,1763529046232,-153.0,0.00040406,120]
[394396212,1763529046242,-153.0,0.00040406,120]
[394396213,1763529046251,-153.0,0.00040406,120]
[394396214,1763529046264,-153.0,0.00040406,120]
[394396215,1763529046273,-153.0,0.00040406,120]
[394396216,1763529046283,-153.0,0.00040406,120]
[394396217,1763529046292,-153.0,0.00040406,120]
[394396218,1763529046301,-153.0,0.00040406,120]
[394396219,1763529046311,-153.0,0.00040406,120]
[394396220,1763529046320,-153.0,0.00040406,120]
[394396221,1763529046330,-153.0,0.00040406,120]
[394396222,1763529046340,-1000.0,0.00040417,31]
[394396223,1763529046349,-820.0,0.00040417,120]
[394396224,1763529046358,-500.0,0.00040417,31]
[394396225,1763529046369,-217.66,0.00040428,14]
[394396226,1763529046379,-1000.0,0.00040431,7]
[394396227,1763529046389,-1000.0,0.00040445,31]
[394396228,1763529046398,-820.0,0.00040445,120]
[394396229,1763529046408,-500.0,0.00040445,31]
[394396230,1763529046417,-1000.0,0.00040448,7]
[394396231,1763529046427,-1000.0,0.00040468,7]
[394396232,1763529046437,-1000.0,0.00040472,31]
[394396233,1763529046449,-820.0,0.00040472,120]
[394396234,1763529046459,-306.82673582,0.00040472,31]
[394396235,1763529046469,-6089.44681061,0.00040477,15]
[394396236,1763529046478,-158.3,0.00040478,14]
[394396237,1763529046488,-1000.0,0.00040482,7]
[394396238,1763529046497,-17420.10620975,0.00040483,15]
[394396240,1763529046506,-263.82881944,0.00040494,14]
[394396241,1763529046515,-943.82,0.00040498,30]
[394396242,1763529046524,-1000.0,0.00040499,31]
[394396243,1763529046533,-820.0,0.00040499,120]
[394396244,1763529046542,-934.0,0.00040515,2]
[394396245,1763529046551,-158.3,0.00040525,14]
[394396246,1763529046560,-1000.0,0.00040527,31]
[394396247,1763529046570,-820.0,0.00040527,120]
[394396248,1763529046579,-1000.0,0.00040542,7]
[394396249,1763529046590,-1000.0,0.00040554,31]
[394396250,1763529046599,-820.0,0.00040554,120]
[394396251,1763529046608,-1000.0,0.00040557,7]
[394396252,1763529046617,-1339.41435762,0.00040558,28]
[394396253,1763529046626,-157.92216333,0.00040561,2]
[394396254,1763529046635,-918.18417831,0.00040566,2]
[394396255,1763529046644,-1000.0,0.00040582,31]
[394396256,1763529046655,-820.0,0.00040582,120]
[394396257,1763529046665,-160.97,0.00040604,14]
[394396258,1763529046674,-1000.0,0.00040609,31]
[394396259,1763529046683,-820.0,0.00040609,120]
[394396260,1763529046692,-565.80333007,0.00040621,5]
[394396261,1763529046701,-1000.0,0.00040636,31]
[394396262,1763529046711,-820.0,0.00040636,120]
[394396263,1763529046719,-300.0,0.00040638,2]
[394396264,1763529046728,-1000.0,0.00040664,31]
[394396265,1763529046737,-820.0,0.00040664,120]
[394396266,1763529046746,-500.71998968,0.00040673,2]
[394396267,1763529046758,-6089.44681061,0.00040685,15]
[394396268,1763529046767,-17420.10620975,0.00040691,15]
[394396269,1763529046776,-1008.22942415,0.00040691,31]
[394396270,1763529046785,-833.14370384,0.00040691,120]
[394396271,1763529046794,-271.92,0.00040699,2]
[394396272,1763529046803,-1000.0,0.00040721,5]
[394396273,1763529046812,-1000.0,0.00040724,7]
[394396274,1763529046821,-1000.0,0.00040772,7]
[394396275,1763529046830,-943.82,0.00040772,30]
[394396276,1763529046839,-354.60024239,0.00040773,5]
[394396277,1763529046848,-153.0,0.00040775,120]
[394396278,1763529046857,-153.0,0.00040775,120]
[394396279,1763529046866,-168.0,0.00040776,2]
[394396280,1763529046875,-1000.0,0.00040778,90]
[394396281,1763529046884,-1000.0,0.00040778,90]
[394396282,1763529046893,-1000.0,0.00040778,90]
[394396283,1763529046902,-1000.0,0.00040778,90]
[394396284,1763529046911,-1000.0,0.00040778,90]
[394396285,1763529046920,-1000.0,0.00040778,90]
[394396286,1763529046929,-1146.0,0.00040783,7]
[394396287,1763529046937,-1000.0,0.00040786,30]
[394396288,1763529046947,-1000.0,0.00040786,30]
[394396289,1763529046956,-1000.0,0.00040786,30]
[394396290,1763529046970,-1000.0,0.00040786,30]
[394396291,1763529046979,-1339.41435762,0.00040792,28]
[394396292,1763529046988,-2000.0,0.00040821,120]
[394396293,1763529046997,-1000.0,0.00040823,7]
[394396294,1763529047007,-7700.97836635,0.00040828,5]
[394396295,1763529047017,-1556.21635064,0.0004085,120]
[394396296,1763529047026,-251.8106614,0.0004086,7]
[394396297,1763529047036,-307.29731425,0.00040864,2]
[394396298,1763529047046,-1000.0,0.00040884,7]
[394396299,1763529047054,-156.01,0.0004089,2]
[394396300,1763529047063,-17.44781067,0.00040893,7]
[394396301,1763529047234,-150.0,0.0003995,2]
[394396302,1763529047244,-150.0,0.0003995,31]
[394396303,1763529047253,-151.0,0.00040119,2]
[394396304,1763529047262,-500.0,0.00040169,31]
[394396305,1763529047271,-500.0,0.00040197,31]
[394396306,1763529047281,-598.0,0.00040224,31]
[394396307,1763529047290,-805.19339934,0.00040893,7]
[394396308,1763529047302,-177.35878999,0.00040893,7]
[394396309,1763529047312,-123.78389798,0.00040894,15]
[394396310,1763529047323,-5965.66291263,0.00040894,15]
[394396311,1763529047332,-17420.10620975,0.00040898,15]
[394396312,1763529047341,-1000.0,0.000409,7]
[394396313,1763529047350,-157.92216333,0.0004095,2]
[394396314,1763529047360,-268.27266281,0.00040958,14]
[394396315,1763529047369,-300.0,0.00040973,2]
[394396316,1763529047379,-168.0,0.00040983,2]
[394396317,1763529047388,-500.0,0.00040999,7]
[394396318,1763529047398,-1170.13419208,0.00041,120]
[394396319,1763529047407,-168.0,0.00041014,7]
[394396320,1763529047417,-1000.0,0.00041019,7]
[394396321,1763529047427,-183.58502316,0.00041024,2]
[394396322,1763529047438,-1339.41435762,0.00041025,28]
[394396323,1763529047449,-1000.0,0.00041033,7]
[394396324,1763529047459,-943.82,0.00041046,30]
[394396325,1763529047468,-4160.0,0.00041055,5]
[394396326,1763529047477,-1000.0,0.00041074,7]
[394396327,1763529047486,-300.0,0.00041094,2]
[394396328,1763529047496,-3898.06,0.00041095,2]
[394396329,1763529047505,-500.0,0.00041095,2]
[394396330,1763529047515,-300.0,0.00041095,2]
[394396331,1763529047524,-635.08,0.00041095,2]
[394396332,1763529047533,-250.7,0.00041096,120]
[394396333,1763529047542,-154.88,0.00041096,2]
[394396334,1763529047551,-203.23919313,0.00041096,30]
[394396335,1763529047560,-443.78565574,0.000411,2]
[394396336,1763529047570,-6089.44681061,0.00041102,15]
[394396337,1763529047579,-17420.10620975,0.00041106,15]
[394396338,1763529047593,-1000.0,0.00041138,14]
[394396339,1763529047603,-807.0,0.0004118,30]
[394396340,1763529047612,-1000.0,0.0004118,14]
[394396341,1763529047621,-1100.0,0.000412,15]
[394396342,1763529047631,-1100.0,0.000412,15]
[394396343,1763529047640,-1339.41435762,0.00041259,28]
[394396344,1763529047649,-360.10803368,0.00041268,10]
[394396345,1763529047658,-1191.307,0.00041278,2]
[394396346,1763529047668,-1400.0,0.000413,15]
[394396347,1763529047677,-1400.0,0.000413,15]
[394396348,1763529047687,-6089.44681061,0.00041311,15]
[394396349,1763529047696,-17420.10620975,0.00041313,15]
[394396350,1763529047706,-943.82,0.0004132,30]
[394396351,1763529047715,-157.92216333,0.00041338,3]
[394396352,1763529047724,-3898.06,0.00041369,2]
[394396353,1763529047734,-500.0,0.00041369,2]
[394396354,1763529047744,-300.0,0.00041369,2]
[394396355,1763529047753,-635.08,0.00041369,2]
[394396356,1763529047763,-200.0,0.000414,15]
[394396357,1763529047772,-200.0,0.000414,15]
[394396358,1763529047782,-1319.0,0.00041453,2]
[394396359,1763529047795,-581.405,0.00041453,2]
[394396360,1763529047804,-612.566,0.00041453,2]
[394396361,1763529047814,-3433.0,0.00041453,2]
[394396362,1763529047823,-824.0,0.00041453,2]
[394396363,1763529047832,-1606.63,0.00041453,2]
[394396364,1763529047842,-1287.555,0.00041453,2]
[394396365,1763529047851,-800.975,0.00041453,2]
[394396366,1763529047860,-1000.0,0.00041467,14]
[394396367,1763529047870,-1000.0,0.0004148,14]
[394396368,1763529047879,-936.0,0.00041489,2]
[394396369,1763529047889,-1339.41435762,0.00041492,28]
[394396370,1763529047898,-200.0,0.000415,15]
[394396371,1763529047908,-200.0,0.000415,15]
[394396372,1763529047918,-1000.0,0.00041514,14]
[394396373,1763529047928,-6089.44681061,0.00041519,15]
[394396374,1763529047938,-17420.10620975,0.00041521,15]
[394396375,1763529047948,-162.97952068,0.00041536,7]
[394396376,1763529047957,-300.0,0.00041559,2]
[394396377,1763529047970,-943.82,0.00041594,30]
[394396378,1763529047979,-200.0,0.000416,15]
[394396379,1763529047989,-200.0,0.000416,15]
[394396380,1763529047998,-807.0,0.00041604,30]
[394396381,1763529048008,-2000.0,0.00041613,3]
[394396382,1763529048018,-2000.0,0.00041617,3]
[394396383,1763529048027,-300.0,0.00041619,2]
[394396384,1763529048037,-1000.0,0.00041636,14]
[394396385,1763529048047,-300.0,0.00041639,2]
[394396386,1763529048056,-3898.06,0.00041643,2]
[394396387,1763529048065,-300.0,0.00041643,2]
[394396388,1763529048074,-635.08,0.00041643,2]
[394396389,1763529048083,-2200.51128326,0.0004166,120]
[394396390,1763529048092,-168.0,0.00041665,2]
[394396391,1763529048101,-198.54828745,0.00041684,14]
[394396392,1763529048111,-1000.0,0.00041688,14]
[394396393,1763529048120,-166.60978879,0.000417,120]
[394396394,1763529048288,-9825.1047846,0.000417,7]
[394396395,1763529048302,-188.58154472,0.000417,120]
[394396396,1763529048311,-199.74447139,0.000417,120]
[394396397,1763529048321,-200.0,0.000417,15]
[394396398,1763529048331,-200.0,0.000417,15]
[394396399,1763529048340,-1339.41435762,0.00041726,28]
[394396400,1763529048350,-157.92216333,0.00041726,4]
[394396401,1763529048359,-1556.21635064,0.00041728,120]
[394396402,1763529048369,-6089.44681061,0.00041728,15]
[394396403,1763529048379,-17420.10620975,0.00041728,15]
[394396404,1763529048389,-338.37086488,0.00041728,2]
[394396405,1763529048399,-11955.58908399,0.00041728,2]
[394396406,1763529048409,-1014.08421681,0.00041728,2]
[394396407,1763529048419,-502.99680416,0.00041786,30]
[394396408,1763529048429,-300.0,0.00041791,2]
[394396409,1763529048438,-150.0,0.00041798,30]
[394396410,1763529048453,-213.234,0.00041798,30]
[394396411,1763529048462,-150.0,0.000418,47]
[394396412,1763529048471,-900.0,0.000418,15]
[394396413,1763529048481,-150.0,0.000418,60]
[394396414,1763529048490,-900.0,0.000418,15]
[394396415,1763529048500,-171.07504743,0.00041808,2]
[394396416,1763529048509,-2200.0,0.00041808,30]
[394396417,1763529048519,-2200.0,0.00041808,30]
[394396418,1763529048528,-2200.0,0.00041808,30]
[394396419,1763529048537,-2200.0,0.00041808,30]
[394396420,1763529048546,-2200.0,0.00041808,30]
[394396421,1763529048556,-2200.0,0.00041808,30]
[394396422,1763529048565,-2200.0,0.00041808,30]
[394396423,1763529048575,-2200.0,0.00041808,30]
[394396424,1763529048584,-2200.0,0.00041808,30]
[394396425,1763529048593,-2200.0,0.00041808,30]
[394396426,1763529048602,-164.0,0.00041808,120]
[394396427,1763529048612,-239.13527254,0.00041818,7]
[394396428,1763529048621,-239.13527254,0.00041818,7]
[394396429,1763529048630,-2000.0,0.0004182,120]
[394396430,1763529048640,-200.0,0.0004182,120]
[394396431,1763529048649,-4252.46233937,0.00041822,30]
[394396432,1763529048658,-4252.46233937,0.00041822,30]
[394396433,1763529048667,-4252.46233937,0.00041822,30]
[394396434,1763529048676,-4252.46233937,0.00041822,30]
[394396435,1763529048686,-2000.0,0.00041826,7]
[394396436,1763529048696,-200.0,0.00041826,7]
[394396437,1763529048706,-200.0,0.00041826,7]
[394396438,1763529048715,-500.0,0.00041826,7]
[394396439,1763529048724,-199.84306154,0.00041826,7]
[394396440,1763529048733,-200.0,0.00041826,7]
[394396441,1763529048743,-159.62724798,0.00041826,14]
[394396442,1763529048752,-416.44,0.00041826,30]
[394396443,1763529048761,-468.63867997,0.00041826,30]
[394396444,1763529048771,-468.63867997,0.00041826,30]
[394396445,1763529048780,-500.0,0.00041827,30]
[394396446,1763529048789,-865421.18000036,0.00041828,7]
[394396447,1763529048802,-500.26305095,0.00041828,7]
[394396448,1763529048814,-1819.1092436,0.00041828,7]
[394396449,1763529048825,-3503.76375813,0.00041828,7]
[394396451,1763529125655,500.0,0.00041828,120]
[394396452,1763529126263,500.0,0.00041828,120]
[394396453,1763529126687,1019.73568825,0.00041828,30]
[394396454,1763529126843,500.0,0.00041828,120]
[394396455,1763529127468,500.0,0.00041828,120]
[394396456,1763529128095,500.0,0.00041828,120]
[394396457,1763529128776,500.0,0.00041828,120]
[394396458,1763529129367,500.0,0.00041828,120]
[394396459,1763529130053,500.0,0.00041828,120]
[394396460,1763529130530,385.29565655,0.00041828,120]
[394396461,1763529130649,500.0,0.00041828,120]
[394396462,1763529131276,500.0,0.00041828,120]
[394396463,1763529131901,500.0,0.00041828,120]
[394396464,1763529133237,200.0,0.00041828,30]
[394396465,1763529133859,207.4,0.00041828,30]
[394396466,1763529134469,215.0738,0.00041828,30]
[394396467,1763529135085,215.0738,0.00041828,30]
[394396468,1763529189083,334.98562431,0.00041828,30]
[394396470,1763529250659,200.0,0.00041829,30]
[394396471,1763529251201,207.4,0.00041829,30]
[394396472,1763529251808,207.4,0.00041829,30]
[394396475,1763529361944,200.0,0.00041829,30]
[394396476,1763529486055,195.0,0.00025553,120]
[394396477,1763529486161,195.0,0.00027615,120]
[394396478,1763529501479,580.33540836,0.00041836,30]
[394396479,1763529543586,195.0,0.00021204,120]
[394396480,1763529543677,195.0,0.00021253,120]
[394396481,1763529543790,195.0,0.00027653,120]
[394396482,1763529544394,300.0,0.00021204,119]
[394396483,1763529545331,-218.84,0.00019276,2]
[394396484,1763529545353,-181.16674862,0.00021204,2]
[394396485,1763529547315,-68.83325138,0.00021204,2]
[394396486,1763529547336,-181.457221,0.00021204,2]
[394396487,1763529550133,-118.542779,0.00021204,2]
[394396488,1763529550156,-119.887221,0.00021204,2]
[394396491,1763529655586,500.0,0.00041836,120]
[394396492,1763529655850,500.0,0.00041836,120]
[394396493,1763529656091,500.0,0.00041836,120]
[394396494,1763529656370,500.0,0.00041836,120]
[394396495,1763529656608,500.0,0.00041836,120]
[394396496,1763529656890,500.0,0.00041836,120]
[394396497,1763529657123,500.0,0.00041836,120]
[394396498,1763529657364,500.0,0.00041836,120]
[394396499,1763529657596,559.74675141,0.00041836,120]
[394396500,1763529660641,200.0,0.00041836,30]
[394396504,1763529743615,500.0,0.00041836,120]
[394396505,1763529743862,508.28843593,0.00041836,120]
[394396511,1763529906912,2498.61173679,0.00025553,120]
[394396514,1763530014062,500.0,0.00041836,30]
[394396515,1763530014356,500.3850382,0.00041836,30]
[394396534,1763530231896,-238.39169635,0.0002211,2]
[394396537,1763530231905,-302.0,0.0002323,2]
[394396538,1763530231914,-479.42350612,0.0003113,2]
[394396540,1763530231923,-159.93,0.0003115,2]
[394396541,1763530231932,-2233.64636406,0.000345,14]
[394396543,1763530231941,-400.0,0.00034999,3]
[394396545,1763530231950,-1200.0,0.00034999,3]
[394396546,1763530231959,-300.0,0.00034999,3]
[394396548,1763530231968,-161.0,0.00035,30]
[394396549,1763530231977,-6520.71660103,0.00035,120]
[394396550,1763530231988,-406.75371124,0.00035,30]
[394396551,1763530231997,-162.0,0.00036383,30]
[394396552,1763530232006,-1600.0,0.00036835,3]
[394396553,1763530232015,-1284.65,0.00036836,2]
[394396554,1763530232024,-8067.98,0.00036836,2]
[394396555,1763530232034,-349.70952762,0.00036836,30]
[394396556,1763530232043,-242.59,0.00036856,30]
[394396557,1763530232052,-385.0,0.00036899,2]
[394396558,1763530232062,-500.0,0.000369,5]
[394396559,1763530232071,-175.840023,0.000369,5]
[394396560,1763530232080,-500.0,0.000369,5]
[394396561,1763530232090,-182.8775756,0.000369,5]
[394396562,1763530232099,-500.0,0.000369,5]
[394396563,1763530232108,-502.46432212,0.000369,5]
[394396564,1763530232117,-512.71724406,0.000369,5]
[394396565,1763530232126,-500.0,0.000369,5]
[394396566,1763530232135,-506.79679862,0.00037448,5]
[394396567,1763530232144,-284.0,0.00037527,3]
[394396568,1763530232153,-1852.42,0.00037764,2]
[394396569,1763530232163,-250.0,0.00037922,2]
[394396570,1763530232172,-936.27,0.00038228,120]
[394396571,1763530232181,-4036.22,0.00038258,2]
[394396572,1763530232190,-603.76,0.00038355,2]
[394396573,1763530232199,-999.99,0.00038355,2]
[394396574,1763530232209,-150.99,0.00038355,2]
[394396575,1763530232218,-2396.41129754,0.00038433,2]
[394396576,1763530232228,-168.0,0.00038434,2]
[394396577,1763530232239,-6015.19,0.00038434,2]
[394396579,1763530232249,-9999.99,0.00038434,2]
[394396580,1763530232258,-150.99,0.00038434,30]
[394396581,1763530232267,-200.0,0.0003856,2]
[394396582,1763530232277,-170.96446729,0.00038562,2]
[394396583,1763530232285,-760000.0,0.000386,2]
[394396584,1763530232294,-150.0,0.00038662,2]
[394396585,1763530232303,-15286.93880742,0.000387,7]
[394396586,1763530232312,-3760.95729872,0.000388,14]
[394396587,1763530232322,-170.96446725,0.00039014,2]
[394396588,1763530232332,-2751.0,0.00039021,120]
[394396589,1763530232340,-243.0,0.0003922,2]
[394396590,1763530232350,-243.0,0.00039273,120]
[394396591,1763530232358,-915.976,0.00039414,54]
[394396592,1763530232367,-242.844,0.00039414,54]
[394396593,1763530232376,-30000.0,0.00039415,30]
[394396594,1763530232385,-500.0,0.00039419,15]
[394396595,1763530232394,-500.0,0.00039419,15]
[394396596,1763530232403,-496.45033918,0.00039419,15]
[394396597,1763530232412,-500.0,0.00039419,15]
[394396598,1763530232420,-500.0,0.00039419,15]
[394396599,1763530232430,-500.0,0.00039419,15]
[394396600,1763530232439,-500.0,0.00039419,15]
[394396601,1763530232448,-500.0,0.00039419,15]
[394396602,1763530232460,-500.0,0.00039419,15]
[394396603,1763530232469,-500.0,0.00039419,15]
[394396604,1763530232477,-500.0,0.00039419,15]
[394396605,1763530232486,-500.0,0.00039419,15]
[394396606,1763530232497,-500.0,0.00039419,15]
[394396607,1763530232513,-500.0,0.00039419,15]
[394396608,1763530232523,-500.0,0.00039419,15]
[394396609,1763530232536,-500.0,0.00039419,15]
[394396610,1763530232548,-500.0,0.00039419,15]
[394396611,1763530232560,-500.0,0.00039419,15]
[394396612,1763530232571,-500.0,0.00039419,15]
[394396613,1763530232581,-500.0,0.00039419,15]
[394396614,1763530232591,-500.0,0.00039419,15]
[394396615,1763530232601,-500.0,0.00039419,15]
[394396616,1763530232611,-500.0,0.00039419,15]
[394396617,1763530232620,-500.0,0.00039419,15]
[394396618,1763530232631,-500.0,0.00039419,15]
[394396619,1763530232642,-500.0,0.00039419,15]
[394396620,1763530232652,-500.0,0.00039419,15]
[394396621,1763530232663,-500.0,0.00039419,15]
[394396622,1763530232673,-500.0,0.00039419,15]
[394396623,1763530232684,-500.0,0.00039419,15]
[394396624,1763530232695,-500.0,0.00039419,15]
[394396625,1763530232705,-500.0,0.00039419,15]
[394396626,1763530232716,-500.0,0.00039419,15]
[394396627,1763530232727,-500.0,0.00039419,15]
[394396628,1763530232740,-500.0,0.00039419,15]
[394396629,1763530232751,-500.0,0.00039419,15]
[394396630,1763530232761,-500.0,0.00039419,15]
[394396631,1763530232772,-500.0,0.00039419,15]
[394396632,1763530232783,-500.0,0.00039419,15]
[394396633,1763530232793,-500.0,0.00039419,15]
[394396634,1763530232804,-500.0,0.00039419,15]
[394396635,1763530232814,-500.0,0.00039419,15]
[394396636,1763530232823,-500.0,0.00039419,15]
[394396637,1763530232833,-500.0,0.00039419,15]
[394396638,1763530232842,-500.0,0.00039419,15]
[394396639,1763530232852,-500.0,0.00039419,15]
[394396640,1763530232863,-500.0,0.00039419,15]
[394396641,1763530232875,-500.0,0.00039419,15]
[394396642,1763530232885,-500.0,0.00039419,15]
[394396643,1763530232896,-500.0,0.00039419,15]
[394396644,1763530232906,-500.0,0.00039419,15]
[394396645,1763530232916,-500.0,0.00039419,15]
[394396646,1763530232927,-500.0,0.00039419,15]
[394396647,1763530232938,-500.0,0.00039419,15]
[394396648,1763530232947,-500.0,0.00039419,15]
[394396649,1763530232958,-500.0,0.00039419,15]